lending/lending_fUSD_20250318
["ID","MTS","AMOUNT","RATE_DAILY","PERIOD"]
[356368397,1742339539928,-500.0,0.00038082,12]
[356368398,1742339539938,-500.0,0.00038082,12]
[356368399,1742339539947,-2414.38,0.00038082,12]
[356368400,1742339539957,-1375.9,0.00038082,12]
[356368401,1742339539966,-500.0,0.00038082,12]
[356368402,1742339539976,-1974.79,0.00038082,12]
[356368403,1742339539986,-925.56,0.00038082,12]
[356368404,1742339539995,-712.94,0.00038082,12]
[356368405,1742339540005,-839.12,0.00038082,12]
[356368406,1742339540014,-767.88,0.00038082,12]
[356368407,1742339540023,-1067.84,0.00038082,12]
[356368408,1742339540032,-1426.33,0.00038082,12]
[356368409,1742339540042,-1432.86,0.00038082,12]
[356368410,1742339540052,-780.68,0.00038082,12]
[356368411,1742339540062,-1216.8,0.00038082,12]
[356368412,1742339540071,-1487.69,0.00038082,12]
[356368413,1742339540081,-500.0,0.00038082,12]
[356368414,1742339540091,-1708.8,0.00038082,12]
[356368415,1742339540100,-500.0,0.00038082,12]
[356368416,1742339540110,-674.04,0.00038082,12]
[356368417,1742339540120,-1017.99,0.00038082,12]
[356368418,1742339540130,-913.22,0.00038082,12]
[356368419,1742339540140,-1929.03,0.00038082,12]
[356368420,1742339540150,-902.37,0.00038082,12]
[356368421,1742339540160,-2290.36,0.00038082,12]
[356368422,1742339540171,-1430.23,0.00038082,12]
[356368423,1742339540181,-500.0,0.00038082,12]
[356368424,1742339540190,-1072.64,0.00038082,12]
[356368425,1742339540200,-1760.11,0.00038082,12]
[356368426,1742339540209,-1638.63,0.00038082,12]
[356368427,1742339540219,-1729.5,0.00038082,12]
[356368428,1742339540229,-794.12,0.00038082,12]
[356368429,1742339540238,-1045.11,0.00038082,12]
[356368430,1742339540248,-682.57,0.00038082,12]
[356368431,1742339540257,-500.0,0.00038082,12]
[356368432,1742339540267,-500.0,0.00038082,12]
[356368433,1742339540276,-1395.45,0.00038082,12]
[356368434,1742339540286,-1231.14,0.00038082,12]
[356368435,1742339540295,-1432.26,0.00038082,12]
[356368436,1742339540305,-1130.18,0.00038082,12]
[356368437,1742339540316,-500.0,0.00038082,12]
[356368438,1742339540325,-1071.53,0.00038082,12]
[356368439,1742339540335,-500.0,0.00038082,12]
[356368440,1742339540345,-10881.54,0.00038082,12]
[356368441,1742339540355,-940.53,0.00038082,12]
[356368442,1742339540365,-931.98,0.00038082,12]
[356368443,1742339540375,-643.93,0.00038082,12]
[356368444,1742339540384,-736.61,0.00038082,12]
[356368445,1742339540394,-1889.22,0.00038082,12]
[356368446,1742339540404,-500.0,0.00038082,12]
[356368447,1742339540414,-1912.43,0.00038082,12]
[356368448,1742339540425,-1500.0,0.00038082,12]
[356368449,1742339540435,-500.0,0.00038082,12]
[356368450,1742339540444,-867.89,0.00038082,12]
[356368451,1742339540454,-655.9,0.00038082,12]
[356368452,1742339540464,-3492.09,0.00038082,12]
[356368453,1742339540474,-8347.58,0.00038082,12]
[356368454,1742339540484,-793.27,0.00038082,12]
[356368455,1742339540493,-982.97,0.00038082,12]
[356368456,1742339540503,-500.0,0.00038082,12]
[356368457,1742339540512,-2617.2,0.00038082,12]
[356368458,1742339540522,-500.0,0.00038082,12]
[356368459,1742339540532,-674.83,0.00038082,12]
[356368460,1742339540542,-2613.79,0.00038082,12]
[356368461,1742339540551,-1198.65,0.00038082,12]
[356368462,1742339540560,-500.0,0.00038082,12]
[356368463,1742339540569,-500.0,0.00038082,12]
[356368464,1742339540579,-1104.92,0.00038082,12]
[356368465,1742339540589,-1000.0,0.00038082,12]
[356368466,1742339540598,-430.94514349,0.00038082,120]
[356368467,1742339540608,-1351.56,0.00038082,12]
[356368468,1742339540617,-500.0,0.00038082,12]
[356368469,1742339540627,-573.24,0.00038082,12]
[356368470,1742339540636,-1155.96,0.00038082,12]
[356368471,1742339540646,-592.77,0.00038082,12]
[356368472,1742339540655,-678.37,0.00038082,12]
[356368473,1742339540665,-819.5,0.00038082,12]
[356368474,1742339540676,-1747.47,0.00038082,12]
[356368475,1742339540685,-881.57,0.00038082,12]
[356368476,1742339540695,-733.05,0.00038082,12]
[356368477,1742339540705,-566.73,0.00038082,12]
[356368478,1742339540715,-779.59,0.00038082,12]
[356368479,1742339540724,-700.61,0.00038082,12]
[356368480,1742339540733,-500.0,0.00038082,12]
[356368481,1742339540743,-6201.97,0.00038082,12]
[356368482,1742339540752,-2724.32,0.00038082,12]
[356368483,1742339540761,-673.71,0.00038082,12]
[356368484,1742339540771,-500.0,0.00038082,6]
[356368485,1742339540781,-634.03,0.00038082,12]
[356368486,1742339540796,-1388.66,0.00038082,12]
[356368487,1742339540806,-1201.66,0.00038082,12]
[356368488,1742339540816,-470.64878217,0.00038082,12]
[356368489,1742339540827,-789.17,0.00038082,12]
[356368490,1742339540837,-500.0,0.00038082,12]
[356368491,1742339540846,-500.0,0.00038082,12]
[356368492,1742339540856,-765.41,0.00038082,12]
[356368493,1742339540866,-637.48,0.00038082,12]
[356368494,1742339540876,-1408.89,0.00038082,12]
[356368495,1742339540886,-500.0,0.00038082,12]
[356368496,1742339540896,-1079.25,0.00038082,12]
[356368497,1742339540905,-500.0,0.00038082,12]
[356368498,1742339540915,-629.47,0.00038082,12]
[356368499,1742339540925,-500.0,0.00038082,12]
[356368500,1742339540934,-500.0,0.00038082,12]
[356368501,1742339540944,-500.0,0.00038082,12]
[356368502,1742339540953,-2483.39,0.00038082,12]
[356368503,1742339540963,-500.0,0.00038082,12]
[356368504,1742339540973,-818.98,0.00038082,12]
[356368505,1742339540982,-8678.86,0.00038082,12]
[356368506,1742339540991,-500.0,0.00038082,12]
[356368507,1742339541001,-500.0,0.00038082,12]
[356368508,1742339541011,-500.0,0.00038082,12]
[356368509,1742339541020,-852.66,0.00038082,12]
[356368510,1742339541030,-500.0,0.00038082,12]
[356368511,1742339541040,-1387.5,0.00038082,12]
[356368512,1742339541050,-609.81,0.00038082,12]
[356368513,1742339541060,-500.0,0.00038082,12]
[356368514,1742339541070,-1940.56,0.00038082,12]
[356368515,1742339541080,-5124.49,0.00038082,12]
[356368516,1742339541089,-500.0,0.00038082,12]
[356368517,1742339541099,-982.22,0.00038082,12]
[356368518,1742339541108,-848.28,0.00038082,12]
[356368519,1742339541118,-555.67,0.00038082,12]
[356368520,1742339541128,-500.0,0.00038082,12]
[356368521,1742339541138,-610.21,0.00038082,12]
[356368522,1742339541148,-797.64,0.00038082,12]
[356368523,1742339541158,-500.0,0.00038082,12]
[356368524,1742339541168,-1404.74,0.00038082,12]
[356368525,1742339541178,-500.0,0.00038082,12]
[356368526,1742339541188,-570.46,0.00038082,12]
[356368527,1742339541197,-626.53,0.00038082,12]
[356368528,1742339541207,-1037.27,0.00038082,12]
[356368529,1742339541217,-500.0,0.00038082,12]
[356368530,1742339541227,-2051.57,0.00038082,12]
[356368531,1742339541236,-1010.64,0.00038082,12]
[356368532,1742339541246,-500.0,0.00038082,12]
[356368533,1742339541256,-517.9,0.00038082,12]
[356368534,1742339541265,-753.9,0.00038082,12]
[356368535,1742339541275,-976.72,0.00038082,12]
[356368536,1742339541284,-698.57,0.00038082,12]
[356368537,1742339541294,-810.35,0.00038082,12]
[356368538,1742339541304,-816.08,0.00038082,12]
[356368539,1742339541314,-1763.99,0.00038082,12]
[356368540,1742339541323,-500.0,0.00038082,12]
[356368541,1742339541333,-807.5,0.00038082,12]
[356368542,1742339541343,-228.48475396,0.00038082,12]
[356368543,1742339541352,-974.77,0.00038082,12]
[356368544,1742339541362,-1119.31,0.00038082,12]
[356368545,1742339541372,-500.0,0.00038082,12]
[356368546,1742339541382,-1305.41,0.00038082,12]
[356368547,1742339541392,-764.52,0.00038082,12]
[356368548,1742339541402,-500.0,0.00038082,12]
[356368549,1742339541412,-1054.67,0.00038082,12]
[356368550,1742339541423,-636.48,0.00038082,12]
[356368551,1742339541433,-697.71,0.00038082,12]
[356368552,1742339541443,-502.76312228,0.00038082,2]
[356368553,1742339541453,-784.0,0.00038082,12]
[356368554,1742339541463,-871.68,0.00038082,12]
[356368555,1742339541472,-500.0,0.00038082,12]
[356368556,1742339541482,-1505.16,0.00038082,12]
[356368557,1742339541492,-500.0,0.00038082,12]
[356368558,1742339541502,-500.0,0.00038082,12]
[356368559,1742339541762,-3544.19,0.00038082,12]
[356368560,1742339541772,-500.0,0.00038082,12]
[356368561,1742339541782,-1054.74,0.00038082,12]
[356368562,1742339541796,-3375.24,0.00038082,12]
[356368563,1742339541806,-500.0,0.00038082,12]
[356368564,1742339541816,-645.26328164,0.00038082,12]
[356368565,1742339541826,-1877.16,0.00038082,12]
[356368566,1742339541837,-500.0,0.00038082,12]
[356368567,1742339541847,-1691.18,0.00038082,12]
[356368568,1742339541856,-500.0,0.00038082,12]
[356368569,1742339541866,-1037.55,0.00038082,12]
[356368570,1742339541877,-517.11,0.00038082,12]
[356368571,1742339541887,-1000.0,0.00038082,4]
[356368572,1742339541897,-1657.99266,0.00038088,30]
[356368573,1742339541907,-524.31716385,0.00038176,8]
[356368574,1742339541916,-151.031805,0.00038198,120]
[356368575,1742339541927,-1000.0,0.00038219,4]
[356368576,1742339541937,-2000.0,0.00038225,4]
[356368577,1742339541946,-1657.99266,0.00038288,30]
[356368578,1742339541956,-150.0,0.00038292,2]
[356368579,1742339541965,-500.0,0.00038356,120]
[356368580,1742339541974,-500.0,0.00038356,12]
[356368581,1742339541983,-660.95,0.00038356,12]
[356368582,1742339541993,-500.0,0.00038356,12]
[356368583,1742339542002,-1089.18,0.00038356,12]
[356368584,1742339542011,-1280.18,0.00038356,12]
[356368585,1742339542021,-500.0,0.00038356,12]
[356368586,1742339542030,-705.65,0.00038356,12]
[356368587,1742339542039,-500.0,0.00038356,12]
[356368588,1742339542048,-500.0,0.00038356,12]
[356368589,1742339542058,-839.95,0.00038356,12]
[356368590,1742339542067,-500.0,0.00038356,12]
[356368591,1742339542076,-500.0,0.00038356,12]
[356368592,1742339542086,-500.0,0.00038356,12]
[356368593,1742339542095,-586.59,0.00038356,12]
[356368594,1742339542104,-500.0,0.00038356,12]
[356368595,1742339542113,-659.86,0.00038356,12]
[356368596,1742339542122,-500.0,0.00038356,12]
[356368597,1742339542131,-500.0,0.00038356,12]
[356368598,1742339542141,-500.0,0.00038356,12]
[356368599,1742339542151,-781.58,0.00038356,12]
[356368600,1742339542160,-500.0,0.00038356,12]
[356368601,1742339542169,-578.43,0.00038356,12]
[356368602,1742339542179,-716.41,0.00038356,12]
[356368603,1742339542188,-500.0,0.00038356,12]
[356368604,1742339542198,-875.76,0.00038356,12]
[356368605,1742339542208,-500.0,0.00038356,12]
[356368606,1742339542217,-500.0,0.00038356,12]
[356368607,1742339542226,-500.0,0.00038356,12]
[356368608,1742339542236,-500.0,0.00038356,12]
[356368609,1742339542246,-1293.1,0.00038356,12]
[356368610,1742339542255,-554.73,0.00038356,12]
[356368611,1742339542265,-500.0,0.00038356,12]
[356368612,1742339542275,-500.0,0.00038356,12]
[356368613,1742339542284,-887.4,0.00038356,12]
[356368614,1742339542294,-933.35,0.00038356,12]
[356368615,1742339542303,-645.27,0.00038356,12]
[356368616,1742339542312,-1270.34,0.00038356,12]
[356368617,1742339542321,-635.6,0.00038356,12]
[356368618,1742339542330,-546.63,0.00038356,12]
[356368619,1742339542339,-500.0,0.00038356,12]
[356368620,1742339542348,-500.0,0.00038356,12]
[356368621,1742339542358,-1007.61,0.00038356,12]
[356368622,1742339542367,-506.39402917,0.00038356,12]
[356368623,1742339542376,-616.02,0.00038356,12]
[356368624,1742339542385,-686.76,0.00038356,12]
[356368625,1742339542395,-500.0,0.00038356,12]
[356368626,1742339542404,-500.0,0.00038356,12]
[356368627,1742339542414,-500.0,0.00038356,12]
[356368628,1742339542425,-531.32,0.00038356,12]
[356368629,1742339542434,-500.0,0.00038356,12]
[356368630,1742339542443,-601.48,0.00038356,12]
[356368631,1742339542453,-567.63,0.00038356,12]
[356368632,1742339542462,-963.46,0.00038356,12]
[356368633,1742339542471,-500.0,0.00038356,12]
[356368634,1742339542481,-500.0,0.00038356,12]
[356368635,1742339542490,-815.63,0.00038356,12]
[356368636,1742339542500,-500.0,0.00038356,12]
[356368637,1742339542509,-500.0,0.00038356,12]
[356368638,1742339542518,-500.0,0.00038356,12]
[356368639,1742339542528,-500.0,0.00038356,12]
[356368640,1742339542537,-500.0,0.00038356,12]
[356368641,1742339542546,-500.0,0.00038356,12]
[356368642,1742339542555,-500.37,0.00038356,12]
[356368643,1742339542565,-546.76,0.00038356,12]
[356368644,1742339542574,-532.84376729,0.00038356,12]
[356368645,1742339542584,-345.72732056,0.00038356,12]
[356368646,1742339542593,-500.0,0.00038356,12]
[356368647,1742339542603,-500.0,0.00038356,12]
[356368648,1742339542612,-599.5,0.00038356,12]
[356368649,1742339542623,-729.58,0.00038356,12]
[356368650,1742339542632,-922.39,0.00038356,12]
[356368651,1742339542641,-500.0,0.00038356,12]
[356368652,1742339542650,-1163.14,0.00038356,12]
[356368653,1742339542660,-875.92,0.00038356,30]
[356368654,1742339542669,-500.0,0.00038356,12]
[356368655,1742339542680,-750.87,0.00038356,12]
[356368656,1742339542689,-606.16151212,0.00038356,12]
[356368657,1742339542699,-1410.05,0.00038356,12]
[356368658,1742339542708,-510.0,0.00038356,12]
[356368659,1742339542718,-541.9,0.00038356,12]
[356368660,1742339542727,-2100.21,0.00038356,12]
[356368661,1742339542736,-500.0,0.00038356,12]
[356368662,1742339542746,-819.72,0.00038356,12]
[356368663,1742339542756,-500.0,0.00038356,12]
[356368664,1742339542765,-868.85,0.00038356,12]
[356368665,1742339542774,-163.344036,0.00038356,12]
[356368666,1742339542784,-500.0,0.00038356,12]
[356368667,1742339542798,-832.99,0.00038356,12]
[356368668,1742339542807,-500.0,0.00038356,12]
[356368669,1742339542817,-500.0,0.00038356,12]
[356368670,1742339542827,-1487.67,0.00038356,12]
[356368671,1742339542836,-1565.380344,0.00038356,12]
[356368672,1742339542846,-500.0,0.00038356,12]
[356368673,1742339542856,-728.98,0.00038356,12]
[356368674,1742339542867,-156.823057,0.00038356,12]
[356368675,1742339542876,-500.0,0.00038356,12]
[356368676,1742339542885,-915.45,0.00038356,12]
[356368677,1742339542894,-500.0,0.00038356,12]
[356368678,1742339542904,-523.14,0.00038356,12]
[356368679,1742339542914,-500.0,0.00038356,12]
[356368680,1742339542923,-500.0,0.00038356,12]
[356368681,1742339542933,-415.53198,0.00038356,12]
[356368682,1742339542942,-500.0,0.00038356,12]
[356368683,1742339542951,-500.0,0.00038356,12]
[356368684,1742339542960,-500.0,0.00038356,12]
[356368685,1742339542970,-571.54,0.00038356,12]
[356368686,1742339542979,-547.0,0.00038356,12]
[356368687,1742339542988,-500.0,0.00038356,12]
[356368688,1742339542997,-740.57,0.00038356,120]
[356368689,1742339543006,-740.57,0.00038356,120]
[356368690,1742339543015,-740.57,0.00038356,120]
[356368691,1742339543024,-740.57,0.00038356,120]
[356368692,1742339543034,-740.57,0.00038356,120]
[356368693,1742339543043,-740.57,0.00038356,120]
[356368694,1742339543052,-740.57,0.00038356,120]
[356368695,1742339543060,-740.57,0.00038356,120]
[356368696,1742339543070,-1579.021524,0.00038356,12]
[356368697,1742339543079,-740.57,0.00038356,120]
[356368698,1742339543088,-740.57,0.00038356,120]
[356368699,1742339543097,-740.57,0.00038356,120]
[356368700,1742339543107,-740.57,0.00038356,120]
[356368701,1742339543116,-740.57,0.00038356,120]
[356368702,1742339543125,-740.57,0.00038356,120]
[356368703,1742339543135,-740.57,0.00038356,120]
[356368704,1742339543144,-740.57,0.00038356,120]
[356368705,1742339543153,-740.57,0.00038356,120]
[356368706,1742339543162,-740.57,0.00038356,120]
[356368707,1742339543172,-740.57,0.00038356,120]
[356368708,1742339543182,-740.57,0.00038356,120]
[356368709,1742339543191,-740.57,0.00038356,120]
[356368710,1742339543201,-740.57,0.00038356,120]
[356368711,1742339543223,-740.57,0.00038356,120]
[356368712,1742339543240,-540.14,0.00038356,12]
[356368713,1742339543260,-740.76804817,0.00038356,120]
[356368714,1742339543281,-500.0,0.00038356,12]
[356368715,1742339543297,-507.06,0.00038356,12]
[356368716,1742339543317,-500.0,0.00038356,12]
[356368717,1742339543337,-500.0,0.00038356,12]
[356368718,1742339543357,-1406.95,0.00038356,12]
[356368719,1742339543377,-1265.92,0.00038356,12]
[356368720,1742339543396,-583.92,0.00038356,12]
[356368721,1742339543411,-500.0,0.00038356,12]
[356368722,1742339543429,-819.59,0.00038356,12]
[356368723,1742339543445,-500.0,0.00038356,12]
[356368724,1742339543461,-500.0,0.00038356,12]
[356368725,1742339543476,-1112.86,0.00038356,12]
[356368726,1742339543492,-500.0,0.00038356,12]
[356368727,1742339543507,-849.05,0.00038356,12]
[356368728,1742339543524,-610.12,0.00038356,12]
[356368729,1742339543539,-500.0,0.00038356,12]
[356368730,1742339543554,-500.0,0.00038356,12]
[356368731,1742339543570,-966.8,0.00038356,12]
[356368732,1742339543585,-562.17,0.00038356,12]
[356368733,1742339543601,-500.0,0.00038356,12]
[356368734,1742339543615,-500.0,0.00038356,12]
[356368735,1742339543630,-500.0,0.00038356,12]
[356368736,1742339543646,-500.0,0.00038356,12]
[356368737,1742339543662,-500.0,0.00038356,12]
[356368738,1742339543679,-500.0,0.00038356,12]
[356368739,1742339543693,-565.83,0.00038356,12]
[356368740,1742339543709,-897.12,0.00038356,12]
[356368741,1742339543724,-500.0,0.00038356,12]
[356368742,1742339543740,-500.0,0.00038356,12]
[356368743,1742339543755,-500.0,0.00038356,12]
[356368744,1742339543771,-529.23744171,0.00038356,12]
[356368745,1742339543788,-500.0,0.00038356,12]
[356368746,1742339543805,-588.08,0.00038356,12]
[356368747,1742339543819,-500.0,0.00038356,12]
[356368748,1742339543835,-539.17,0.00038356,12]
[356368749,1742339543850,-500.0,0.00038356,12]
[356368750,1742339543865,-500.0,0.00038356,12]
[356368751,1742339543880,-2686.86,0.00038356,12]
[356368752,1742339543895,-956.37,0.00038356,12]
[356368753,1742339543910,-500.0,0.00038356,12]
[356368754,1742339543924,-1521.69,0.00038356,7]
[356368755,1742339543939,-500.0,0.00038356,12]
[356368756,1742339543954,-914.58,0.00038356,12]
[356368757,1742339543969,-500.0,0.00038356,12]
[356368758,1742339543983,-537.65,0.00038356,12]
[356368759,1742339543999,-1313.1,0.00038356,12]
[356368760,1742339544015,-555.5963181,0.00038356,12]
[356368761,1742339544029,-500.0,0.00038356,12]
[356368762,1742339544044,-894.12,0.00038356,12]
[356368763,1742339544058,-523.64,0.00038356,12]
[356368764,1742339544073,-500.0,0.00038356,12]
[356368765,1742339544087,-500.0,0.00038356,12]
[356368766,1742339544101,-523.91,0.00038356,12]
[356368767,1742339544116,-500.0,0.00038356,12]
[356368768,1742339544131,-500.0,0.00038356,12]
[356368769,1742339544145,-845.67,0.00038356,12]
[356368770,1742339544161,-500.0,0.00038356,12]
[356368771,1742339544175,-360.20455777,0.00038356,12]
[356368772,1742339544190,-1156.08,0.00038356,12]
[356368773,1742339544204,-500.0,0.00038356,12]
[356368774,1742339544219,-510.37,0.00038356,12]
[356368775,1742339544234,-655.83,0.00038356,12]
[356368776,1742339544249,-1175.67,0.00038356,12]
[356368777,1742339544264,-1360.65,0.00038356,12]
[356368778,1742339544278,-675.44,0.00038356,12]
[356368779,1742339544293,-584.29,0.00038356,12]
[356368780,1742339544307,-500.0,0.00038356,12]
[356368781,1742339544322,-535.37,0.00038356,12]
[356368782,1742339544337,-940.73,0.00038356,12]
[356368783,1742339544351,-500.0,0.00038356,12]
[356368784,1742339544366,-500.0,0.00038356,12]
[356368785,1742339544382,-661.64,0.00038356,12]
[356368786,1742339544397,-628.6,0.00038356,12]
[356368787,1742339544412,-872.38,0.00038356,12]
[356368788,1742339544427,-671.95,0.00038356,12]
[356368789,1742339544442,-589.35,0.00038356,12]
[356368790,1742339544456,-500.0,0.00038356,12]
[356368791,1742339544472,-500.0,0.00038356,12]
[356368792,1742339544486,-500.0,0.00038356,12]
[356368793,1742339544501,-500.0,0.00038356,12]
[356368794,1742339544516,-2111.58,0.00038356,12]
[356368795,1742339544531,-1118.44,0.00038356,12]
[356368796,1742339544545,-500.0,0.00038356,12]
[356368797,1742339544560,-500.0,0.00038356,12]
[356368798,1742339544574,-952.51,0.00038356,12]
[356368799,1742339544588,-500.0,0.00038356,12]
[356368800,1742339544603,-1141.77,0.00038356,12]
[356368801,1742339544618,-509.9,0.00038356,12]
[356368802,1742339544632,-786.29,0.00038356,12]
[356368803,1742339544647,-500.0,0.00038356,12]
[356368804,1742339544662,-885.74,0.00038356,12]
[356368805,1742339544676,-500.0,0.00038356,12]
[356368806,1742339544690,-853.02,0.00038356,12]
[356368807,1742339544705,-500.0,0.00038356,12]
[356368808,1742339544720,-500.0,0.00038356,12]
[356368809,1742339544734,-930.16,0.00038356,12]
[356368810,1742339544748,-534.99,0.00038356,12]
[356368811,1742339544763,-500.0,0.00038356,12]
[356368812,1742339544777,-554.71,0.00038356,12]
[356368813,1742339544796,-1096.04,0.00038356,12]
[356368814,1742339544812,-500.0,0.00038356,12]
[356368815,1742339544826,-669.21,0.00038356,12]
[356368816,1742339544842,-2116.57,0.00038356,12]
[356368817,1742339544857,-500.0,0.00038356,12]
[356368818,1742339544873,-500.0,0.00038356,12]
[356368819,1742339544888,-824.59,0.00038356,12]
[356368820,1742339544903,-1273.18,0.00038356,12]
[356368821,1742339544917,-662.07,0.00038356,12]
[356368822,1742339544932,-1001.65,0.00038356,12]
[356368823,1742339544947,-865.19,0.00038356,12]
[356368824,1742339544963,-500.0,0.00038356,12]
[356368825,1742339544978,-569.57,0.00038356,12]
[356368826,1742339544993,-850.25,0.00038356,12]
[356368827,1742339545007,-2025.31,0.00038356,12]
[356368828,1742339545022,-500.0,0.00038356,12]
[356368829,1742339545043,-1125.43,0.00038356,12]
[356368830,1742339545057,-1034.97,0.00038356,12]
[356368831,1742339545073,-736.13,0.00038356,12]
[356368832,1742339545088,-270.6185768,0.00038356,12]
[356368833,1742339545102,-500.0,0.00038356,12]
[356368834,1742339545118,-500.0,0.00038356,12]
[356368835,1742339545133,-279.90405713,0.00038356,12]
[356368836,1742339545148,-500.0,0.00038356,12]
[356368837,1742339545162,-705.75,0.00038356,12]
[356368838,1742339545176,-500.0,0.00038356,12]
[356368839,1742339545192,-1168.81,0.00038356,12]
[356368840,1742339545208,-500.0,0.00038356,12]
[356368841,1742339545226,-909.53,0.00038356,12]
[356368842,1742339545244,-1214.66,0.00038356,12]
[356368843,1742339545261,-750.56,0.00038356,12]
[356368844,1742339545278,-385.01000869,0.00038356,12]
[356368845,1742339545296,-500.0,0.00038356,12]
[356368846,1742339545311,-999.43,0.00038356,12]
[356368847,1742339545327,-200.0,0.00038356,7]
[356368848,1742339545342,-912.96,0.00038356,12]
[356368849,1742339545358,-500.0,0.00038356,12]
[356368850,1742339545375,-628.87,0.00038356,12]
[356368851,1742339545391,-1022.31,0.00038356,12]
[356368852,1742339545405,-500.0,0.00038356,12]
[356368853,1742339545422,-500.0,0.00038356,12]
[356368854,1742339545438,-664.59,0.00038356,12]
[356368855,1742339545454,-970.21,0.00038356,12]
[356368856,1742339545469,-1253.42,0.00038356,12]
[356368857,1742339545484,-1388.92,0.00038356,12]
[356368858,1742339545499,-605.69,0.00038356,12]
[356368859,1742339545515,-500.0,0.00038356,12]
[356368860,1742339545529,-500.0,0.00038356,12]
[356368861,1742339545545,-492.97689993,0.00038356,12]
[356368862,1742339545560,-500.0,0.00038356,12]
[356368863,1742339545575,-500.0,0.00038356,12]
[356368864,1742339545590,-1024.33,0.00038356,12]
[356368865,1742339545606,-603.22,0.00038356,12]
[356368866,1742339545955,-747.21,0.00038356,12]
[356368867,1742339545990,-500.0,0.00038356,12]
[356368868,1742339546000,-500.0,0.00038356,12]
[356368869,1742339546010,-500.0,0.00038356,12]
[356368870,1742339546020,-1242.02,0.00038356,12]
[356368871,1742339546030,-843.17,0.00038356,12]
[356368872,1742339546040,-535.11,0.00038356,12]
[356368873,1742339546051,-532.91,0.00038356,12]
[356368874,1742339546061,-536.51,0.00038356,7]
[356368875,1742339546070,-191.00114963,0.00038356,12]
[356368876,1742339546081,-864.22,0.00038356,12]
[356368877,1742339546091,-500.0,0.00038356,12]
[356368878,1742339546101,-472.5,0.00038356,12]
[356368879,1742339546111,-500.0,0.00038356,12]
[356368880,1742339546121,-500.0,0.00038356,12]
[356368881,1742339546131,-500.0,0.00038356,12]
[356368882,1742339546140,-1425.59,0.00038356,12]
[356368883,1742339546150,-500.0,0.00038356,12]
[356368884,1742339546160,-838.26,0.00038356,12]
[356368885,1742339546170,-218.82333609,0.00038356,12]
[356368886,1742339546179,-1035.77,0.00038356,12]
[356368887,1742339546189,-1119.9,0.00038356,12]
[356368888,1742339546198,-500.0,0.00038356,12]
[356368889,1742339546208,-940.64,0.00038356,12]
[356368890,1742339546218,-500.0,0.00038356,12]
[356368891,1742339546228,-500.0,0.00038356,12]
[356368892,1742339546238,-757.19,0.00038356,12]
[356368893,1742339546247,-500.0,0.00038356,12]
[356368894,1742339546258,-605.48127568,0.00038356,12]
[356368895,1742339546267,-1602.15,0.00038356,12]
[356368896,1742339546277,-1002.8,0.00038356,12]